Department family,Entity,Date,Expense Type,Expense area,Supplier,Transaction number,AP Amount (�),VAT registration number
Department of Health,NHS Barnsley CCG,30/06/2016,C&M-APMS Contract Value,PRC DELEGATED CO-COMMISSIONING,BARNSLEY HEALTHCARE FEDERATION,12988397,"24,181.58",
Department of Health,NHS Barnsley CCG,30/06/2016,C&M-APMS OOH Opt Outs,PRC DELEGATED CO-COMMISSIONING,BARNSLEY HEALTHCARE FEDERATION,12988397,2.84,
Department of Health,NHS Barnsley CCG,30/06/2016,C&M-APMS Prem Actual Rent,PRC DELEGATED CO-COMMISSIONING,BARNSLEY HEALTHCARE FEDERATION,12988397,"1,429.55",
Department of Health,NHS Barnsley CCG,30/06/2016,C&M-APMS Prem Rates,PRC DELEGATED CO-COMMISSIONING,BARNSLEY HEALTHCARE FEDERATION,12988397,377.52,
Department of Health,NHS Barnsley CCG,30/06/2016,Hcare Srv Rec Fdtn Trust-CQUIN,ACUTE COMMISSIONING,BARNSLEY HOSPITAL NHS FOUNDATION TRUST,13027647,"251,865.00",
Department of Health,NHS Barnsley CCG,30/06/2016,Hcare Srv Rec Fdtn Trust-Contract Baseline,ACUTE COMMISSIONING,BARNSLEY HOSPITAL NHS FOUNDATION TRUST,13027647,"10,531,214.00",
Department of Health,NHS Barnsley CCG,30/06/2016,Telecoms-Data lines,PRIMARY CARE IT,BARNSLEY HOSPITAL NHS FOUNDATION TRUST,13062985,"37,627.00",
Department of Health,NHS Barnsley CCG,31/05/2016,Hcare Srv Rec Fdtn Trust-Contract Baseline,ACUTE COMMISSIONING,BARNSLEY HOSPITAL NHS FOUNDATION TRUST,12259292,"26,861.00",
Department of Health,NHS Barnsley CCG,30/06/2016,Clinical&Medical-Othe Public Sector,WINTER PRESSURES,BARNSLEY METROPOLITAN BOROUGH COUNCIL,12871777,"1,398,842.00",
Department of Health,NHS Barnsley CCG,30/06/2016,Clinical&Medical-Othe Public Sector,WINTER PRESSURES,BARNSLEY METROPOLITAN BOROUGH COUNCIL,12872216,"(1,398,842.00)",
Department of Health,NHS Barnsley CCG,30/06/2016,Clinical&Medical-Othe Public Sector,CHC AD JNT FUND PERS HLTH BUD,BARNSLEY METROPOLITAN BOROUGH COUNCIL,13226096,"(30,167.09)",
Department of Health,NHS Barnsley CCG,30/06/2016,Clinical&Medical-Commercial Sector,OUT OF HOURS,CARE UK CLINICAL SERVICES LTD,13027653,"161,281.08",
Department of Health,NHS Barnsley CCG,30/06/2016,Clinical&Medical-Commercial Sector,ACUTE COMMISSIONING,CARE UK CLINICAL SERVICES LTD,13027657,"27,286.07",
Department of Health,NHS Barnsley CCG,30/06/2016,Clinical&Medical-Commercial Sector,ACUTE COMMISSIONING,CLAREMONT HOSPITAL,12811663,"29,721.00",
Department of Health,NHS Barnsley CCG,30/06/2016,Clinical&Medical-Commercial Sector,ACUTE COMMISSIONING,CLAREMONT HOSPITAL,13027689,"29,363.00",
Department of Health,NHS Barnsley CCG,30/06/2016,C&M-GMS QOF Aspiration,PRC DELEGATED CO-COMMISSIONING,BARNSLEY GP PRACTICE,13235195,"4,803.65",
Department of Health,NHS Barnsley CCG,30/06/2016,C&M-GMS QOF Achievement,PRC DELEGATED CO-COMMISSIONING,BARNSLEY GP PRACTICE,13235195,"14,056.41",
Department of Health,NHS Barnsley CCG,30/06/2016,C&M-GMS Prem Healthcentre Rent,PRC DELEGATED CO-COMMISSIONING,BARNSLEY GP PRACTICE,13235195,"16,234.54",
Department of Health,NHS Barnsley CCG,30/06/2016,C&M-GMS PCO Seniority,PRC DELEGATED CO-COMMISSIONING,BARNSLEY GP PRACTICE,13235195,285.45,
Department of Health,NHS Barnsley CCG,30/06/2016,C&M-GMS Global Sum,PRC DELEGATED CO-COMMISSIONING,BARNSLEY GP PRACTICE,13235195,"50,902.70",
Department of Health,NHS Barnsley CCG,30/06/2016,C&M-GMS DES UNPLANNED ADMISSIONS,PRC DELEGATED CO-COMMISSIONING,BARNSLEY GP PRACTICE,13235195,"5,138.98",
Department of Health,NHS Barnsley CCG,30/06/2016,C&M-GMS DES Learn Dsblty Hlth Chk,PRC DELEGATED CO-COMMISSIONING,BARNSLEY GP PRACTICE,13235195,696.00,
Department of Health,NHS Barnsley CCG,30/06/2016,C&M-GMS DES Case FindingPats Dem,PRC DELEGATED CO-COMMISSIONING,BARNSLEY GP PRACTICE,13235195,"2,096.80",
Department of Health,NHS Barnsley CCG,30/06/2016,C&M-PMS Contract Value,PRC DELEGATED CO-COMMISSIONING,BARNSLEY GP PRACTICE,12991424,"(42,006.75)",
Department of Health,NHS Barnsley CCG,30/06/2016,C&M-PMS GP Statutory Levy,PRC DELEGATED CO-COMMISSIONING,BARNSLEY GP PRACTICE,12991424,(206.43),
Department of Health,NHS Barnsley CCG,30/06/2016,C&M-PMS Out of Hours Opt Outs,PRC DELEGATED CO-COMMISSIONING,BARNSLEY GP PRACTICE,12991424,(37.34),
Department of Health,NHS Barnsley CCG,30/06/2016,C&M-PMS Voluntary Levy,PRC DELEGATED CO-COMMISSIONING,BARNSLEY GP PRACTICE,12991424,(36.13),
Department of Health,NHS Barnsley CCG,30/06/2016,C&M-PMS QOF Aspiration,PRC DELEGATED CO-COMMISSIONING,BARNSLEY GP PRACTICE,12991477,"4,886.06",
Department of Health,NHS Barnsley CCG,30/06/2016,C&M-PMS QOF Achievement,PRC DELEGATED CO-COMMISSIONING,BARNSLEY GP PRACTICE,12991477,"26,742.69",
Department of Health,NHS Barnsley CCG,30/06/2016,C&M-PMS PCO Seniority,PRC DELEGATED CO-COMMISSIONING,BARNSLEY GP PRACTICE,12991477,152.83,
Department of Health,NHS Barnsley CCG,30/06/2016,C&M-PMS Out of Hours Opt Outs,PRC DELEGATED CO-COMMISSIONING,BARNSLEY GP PRACTICE,12991477,"(2,252.58)",
Department of Health,NHS Barnsley CCG,30/06/2016,C&M-PMS DES Case FindingPats Dem,PRC DELEGATED CO-COMMISSIONING,BARNSLEY GP PRACTICE,12991477,41.94,
Department of Health,NHS Barnsley CCG,30/06/2016,C&M-PMS Contract Value,PRC DELEGATED CO-COMMISSIONING,BARNSLEY GP PRACTICE,12991477,"88,321.86",
Department of Health,NHS Barnsley CCG,31/05/2016,Hcare Srv Rec Fdtn Trust-Contract Baseline,ACUTE COMMISSIONING,DONCASTER AND BASSETLAW HOSPITALS NHS FOUNDATION TRUST,12610841,"486,692.00",
Department of Health,NHS Barnsley CCG,30/06/2016,ME-PMS GP Pension ERs Adjs - PMS,PRC DELEGATED CO-COMMISSIONING,BARNSLEY GP PRACTICE,12988377,"(10,164.92)",
Department of Health,NHS Barnsley CCG,30/06/2016,ME-PMS GP Pension EEs-PMS,PRC DELEGATED CO-COMMISSIONING,BARNSLEY GP PRACTICE,12988377,"(10,042.08)",
Department of Health,NHS Barnsley CCG,30/06/2016,C&M-PMS Voluntary Levy,PRC DELEGATED CO-COMMISSIONING,BARNSLEY GP PRACTICE,12988377,(64.34),
Department of Health,NHS Barnsley CCG,30/06/2016,C&M-PMS Out of Hours Opt Outs,PRC DELEGATED CO-COMMISSIONING,BARNSLEY GP PRACTICE,12988377,(64.54),
Department of Health,NHS Barnsley CCG,30/06/2016,C&M-PMS GP Statutory Levy,PRC DELEGATED CO-COMMISSIONING,BARNSLEY GP PRACTICE,12988377,(367.63),
Department of Health,NHS Barnsley CCG,30/06/2016,C&M-PMS Contract Value,PRC DELEGATED CO-COMMISSIONING,BARNSLEY GP PRACTICE,12988377,"(78,377.69)",
Department of Health,NHS Barnsley CCG,30/06/2016,C&M-PMS Contract Value,PRC DELEGATED CO-COMMISSIONING,BARNSLEY GP PRACTICE,12988378,"164,618.97",
Department of Health,NHS Barnsley CCG,30/06/2016,C&M-PMS DES Case FindingPats Dem,PRC DELEGATED CO-COMMISSIONING,BARNSLEY GP PRACTICE,12988378,"2,809.71",
Department of Health,NHS Barnsley CCG,30/06/2016,C&M-PMS DES UNPLANNED ADMISSIONS,PRC DELEGATED CO-COMMISSIONING,BARNSLEY GP PRACTICE,12988378,"8,647.87",
Department of Health,NHS Barnsley CCG,30/06/2016,C&M-PMS Out of Hours Opt Outs,PRC DELEGATED CO-COMMISSIONING,BARNSLEY GP PRACTICE,12988378,"(4,399.77)",
Department of Health,NHS Barnsley CCG,30/06/2016,C&M-PMS PCO Locum Adop/Pat/Mat,PRC DELEGATED CO-COMMISSIONING,BARNSLEY GP PRACTICE,12988378,"9,248.96",
Department of Health,NHS Barnsley CCG,30/06/2016,C&M-PMS PCO Seniority,PRC DELEGATED CO-COMMISSIONING,BARNSLEY GP PRACTICE,12988378,"1,228.83",
Department of Health,NHS Barnsley CCG,30/06/2016,C&M-PMS Prem Healthcentre Rent,PRC DELEGATED CO-COMMISSIONING,BARNSLEY GP PRACTICE,12988378,"17,715.02",
Department of Health,NHS Barnsley CCG,30/06/2016,C&M-PMS Prem Notional Rent,PRC DELEGATED CO-COMMISSIONING,BARNSLEY GP PRACTICE,12988378,"1,833.33",
Department of Health,NHS Barnsley CCG,30/06/2016,C&M-PMS QOF Achievement,PRC DELEGATED CO-COMMISSIONING,BARNSLEY GP PRACTICE,12988378,"35,366.19",
Department of Health,NHS Barnsley CCG,30/06/2016,C&M-PMS QOF Aspiration,PRC DELEGATED CO-COMMISSIONING,BARNSLEY GP PRACTICE,12988378,"9,268.60",
Department of Health,NHS Barnsley CCG,30/06/2016,C&M-PMS QOF Aspiration,PRC DELEGATED CO-COMMISSIONING,BARNSLEY GP PRACTICE,12988380,"1,375.99",
Department of Health,NHS Barnsley CCG,30/06/2016,C&M-PMS QOF Achievement,PRC DELEGATED CO-COMMISSIONING,BARNSLEY GP PRACTICE,12988380,"4,915.51",
Department of Health,NHS Barnsley CCG,30/06/2016,C&M-PMS Prem Actual Rent,PRC DELEGATED CO-COMMISSIONING,BARNSLEY GP PRACTICE,12988380,674.50,
Department of Health,NHS Barnsley CCG,30/06/2016,C&M-PMS Out of Hours Opt Outs,PRC DELEGATED CO-COMMISSIONING,BARNSLEY GP PRACTICE,12988380,(757.25),
Department of Health,NHS Barnsley CCG,30/06/2016,C&M-PMS DES Case FindingPats Dem,PRC DELEGATED CO-COMMISSIONING,BARNSLEY GP PRACTICE,12988380,293.55,
Department of Health,NHS Barnsley CCG,30/06/2016,C&M-PMS Contract Value,PRC DELEGATED CO-COMMISSIONING,BARNSLEY GP PRACTICE,12988380,"28,299.26",
Department of Health,NHS Barnsley CCG,30/06/2016,C&M-PMS Contract Value,PRC DELEGATED CO-COMMISSIONING,BARNSLEY GP PRACTICE,12988381,"(42,224.08)",
Department of Health,NHS Barnsley CCG,30/06/2016,C&M-PMS GP Statutory Levy,PRC DELEGATED CO-COMMISSIONING,BARNSLEY GP PRACTICE,12988381,(220.37),
Department of Health,NHS Barnsley CCG,30/06/2016,C&M-PMS Out of Hours Opt Outs,PRC DELEGATED CO-COMMISSIONING,BARNSLEY GP PRACTICE,12988381,(39.83),
Department of Health,NHS Barnsley CCG,30/06/2016,C&M-PMS Voluntary Levy,PRC DELEGATED CO-COMMISSIONING,BARNSLEY GP PRACTICE,12988381,(38.56),
Department of Health,NHS Barnsley CCG,30/06/2016,ME-PMS GP Pension EEs-PMS,PRC DELEGATED CO-COMMISSIONING,BARNSLEY GP PRACTICE,12988381,"(3,522.50)",
Department of Health,NHS Barnsley CCG,30/06/2016,ME-PMS GP Pension ERs Adjs - PMS,PRC DELEGATED CO-COMMISSIONING,BARNSLEY GP PRACTICE,12988381,"(3,598.83)",
Department of Health,NHS Barnsley CCG,30/06/2016,C&M-PMS QOF Aspiration,PRC DELEGATED CO-COMMISSIONING,BARNSLEY GP PRACTICE,12988382,"4,879.28",
Department of Health,NHS Barnsley CCG,30/06/2016,C&M-PMS QOF Achievement,PRC DELEGATED CO-COMMISSIONING,BARNSLEY GP PRACTICE,12988382,"22,705.32",
Department of Health,NHS Barnsley CCG,30/06/2016,C&M-PMS Prem Healthcentre Rent,PRC DELEGATED CO-COMMISSIONING,BARNSLEY GP PRACTICE,12988382,"20,934.86",
Department of Health,NHS Barnsley CCG,30/06/2016,C&M-PMS PCO Seniority,PRC DELEGATED CO-COMMISSIONING,BARNSLEY GP PRACTICE,12988382,"3,387.40",
Department of Health,NHS Barnsley CCG,30/06/2016,C&M-PMS Out of Hours Opt Outs,PRC DELEGATED CO-COMMISSIONING,BARNSLEY GP PRACTICE,12988382,"(2,381.67)",
Department of Health,NHS Barnsley CCG,30/06/2016,C&M-PMS DES UNPLANNED ADMISSIONS,PRC DELEGATED CO-COMMISSIONING,BARNSLEY GP PRACTICE,12988382,"4,953.41",
Department of Health,NHS Barnsley CCG,30/06/2016,C&M-PMS DES Learn Dsblty Hlth Chk,PRC DELEGATED CO-COMMISSIONING,BARNSLEY GP PRACTICE,12988382,"1,392.00",
Department of Health,NHS Barnsley CCG,30/06/2016,C&M-PMS DES Case FindingPats Dem,PRC DELEGATED CO-COMMISSIONING,BARNSLEY GP PRACTICE,12988382,335.49,
Department of Health,NHS Barnsley CCG,30/06/2016,C&M-PMS Contract Value,PRC DELEGATED CO-COMMISSIONING,BARNSLEY GP PRACTICE,12988382,"89,011.55",
Department of Health,NHS Barnsley CCG,30/06/2016,C&M-GMS Global Sum,PRC DELEGATED CO-COMMISSIONING,BARNSLEY GP PRACTICE,13235197,"66,327.68",
Department of Health,NHS Barnsley CCG,30/06/2016,C&M-GMS PCO Seniority,PRC DELEGATED CO-COMMISSIONING,BARNSLEY GP PRACTICE,13235197,"3,858.42",
Department of Health,NHS Barnsley CCG,30/06/2016,C&M-GMS Prem Notional Rent,PRC DELEGATED CO-COMMISSIONING,BARNSLEY GP PRACTICE,13235197,"4,483.33",
Department of Health,NHS Barnsley CCG,30/06/2016,C&M-GMS Prem Rates,PRC DELEGATED CO-COMMISSIONING,BARNSLEY GP PRACTICE,13235197,"1,751.93",
Department of Health,NHS Barnsley CCG,30/06/2016,C&M-GMS QOF Achievement,PRC DELEGATED CO-COMMISSIONING,BARNSLEY GP PRACTICE,13235197,"59,872.78",
Department of Health,NHS Barnsley CCG,30/06/2016,C&M-GMS QOF Aspiration,PRC DELEGATED CO-COMMISSIONING,BARNSLEY GP PRACTICE,13235197,"8,046.05",
Department of Health,NHS Barnsley CCG,30/06/2016,C&M-GMS QOF Aspiration,PRC DELEGATED CO-COMMISSIONING,BARNSLEY GP PRACTICE,13235199,"6,884.36",
Department of Health,NHS Barnsley CCG,30/06/2016,C&M-GMS QOF Achievement,PRC DELEGATED CO-COMMISSIONING,BARNSLEY GP PRACTICE,13235199,"32,329.42",
Department of Health,NHS Barnsley CCG,30/06/2016,C&M-GMS Prem Water Rates,PRC DELEGATED CO-COMMISSIONING,BARNSLEY GP PRACTICE,13235199,113.52,
Department of Health,NHS Barnsley CCG,30/06/2016,C&M-GMS Prem Rates,PRC DELEGATED CO-COMMISSIONING,BARNSLEY GP PRACTICE,13235199,677.60,
Department of Health,NHS Barnsley CCG,30/06/2016,C&M-GMS Prem Healthcentre Rent,PRC DELEGATED CO-COMMISSIONING,BARNSLEY GP PRACTICE,13235199,"3,194.61",
Department of Health,NHS Barnsley CCG,30/06/2016,C&M-GMS PCO Seniority,PRC DELEGATED CO-COMMISSIONING,BARNSLEY GP PRACTICE,13235199,"2,171.64",
Department of Health,NHS Barnsley CCG,30/06/2016,C&M-GMS Global Sum,PRC DELEGATED CO-COMMISSIONING,BARNSLEY GP PRACTICE,13235199,"61,833.14",
Department of Health,NHS Barnsley CCG,30/06/2016,C&M-GMS DES Case FindingPats Dem,PRC DELEGATED CO-COMMISSIONING,BARNSLEY GP PRACTICE,13235199,587.10,
Department of Health,NHS Barnsley CCG,30/06/2016,Clinical&Medical-Clinical Other,COMMISSIONING SCHEMES,BARNSLEY GP PRACTICE,12812301,"53,303.88",
Department of Health,NHS Barnsley CCG,30/06/2016,ME-PMS GP Pension ERs Adjs - PMS,PRC DELEGATED CO-COMMISSIONING,BARNSLEY GP PRACTICE,12988384,"(14,201.82)",
Department of Health,NHS Barnsley CCG,30/06/2016,ME-PMS GP Pension EEs-PMS,PRC DELEGATED CO-COMMISSIONING,BARNSLEY GP PRACTICE,12988384,"(13,675.09)",
Department of Health,NHS Barnsley CCG,30/06/2016,ME - PMS TPS Added Years Adj EEs,PRC DELEGATED CO-COMMISSIONING,BARNSLEY GP PRACTICE,12988384,(610.96),
Department of Health,NHS Barnsley CCG,30/06/2016,C&M-PMS Voluntary Levy,PRC DELEGATED CO-COMMISSIONING,BARNSLEY GP PRACTICE,12988384,(97.20),
Department of Health,NHS Barnsley CCG,30/06/2016,C&M-PMS Out of Hours Opt Outs,PRC DELEGATED CO-COMMISSIONING,BARNSLEY GP PRACTICE,12988384,(120.03),
Department of Health,NHS Barnsley CCG,30/06/2016,C&M-PMS GP Statutory Levy,PRC DELEGATED CO-COMMISSIONING,BARNSLEY GP PRACTICE,12988384,(555.43),
Department of Health,NHS Barnsley CCG,30/06/2016,C&M-PMS Contract Value,PRC DELEGATED CO-COMMISSIONING,BARNSLEY GP PRACTICE,12988384,"(108,446.66)",
Department of Health,NHS Barnsley CCG,30/06/2016,C&M-PMS QOF Aspiration,PRC DELEGATED CO-COMMISSIONING,BARNSLEY GP PRACTICE,13009039,"13,009.21",
Department of Health,NHS Barnsley CCG,30/06/2016,C&M-PMS QOF Achievement,PRC DELEGATED CO-COMMISSIONING,BARNSLEY GP PRACTICE,13009039,"64,041.10",
Department of Health,NHS Barnsley CCG,30/06/2016,C&M-PMS Prem Notional Rent,PRC DELEGATED CO-COMMISSIONING,BARNSLEY GP PRACTICE,13009039,"6,333.33",
Department of Health,NHS Barnsley CCG,30/06/2016,C&M-PMS PCO Seniority,PRC DELEGATED CO-COMMISSIONING,BARNSLEY GP PRACTICE,13009039,"3,671.32",
Department of Health,NHS Barnsley CCG,30/06/2016,C&M-PMS Out of Hours Opt Outs,PRC DELEGATED CO-COMMISSIONING,BARNSLEY GP PRACTICE,13009039,"(5,758.92)",
Department of Health,NHS Barnsley CCG,30/06/2016,C&M-PMS DES UNPLANNED ADMISSIONS,PRC DELEGATED CO-COMMISSIONING,BARNSLEY GP PRACTICE,13009039,"12,745.04",
Department of Health,NHS Barnsley CCG,30/06/2016,C&M-PMS DES Case FindingPats Dem,PRC DELEGATED CO-COMMISSIONING,BARNSLEY GP PRACTICE,13009039,"10,400.11",
Department of Health,NHS Barnsley CCG,30/06/2016,C&M-PMS Contract Value,PRC DELEGATED CO-COMMISSIONING,BARNSLEY GP PRACTICE,13009039,"228,194.83",
Department of Health,NHS Barnsley CCG,30/06/2016,C&M-PMS Baseline Adjustment,PRC DELEGATED CO-COMMISSIONING,BARNSLEY GP PRACTICE,13009039,188.08,
Department of Health,NHS Barnsley CCG,30/06/2016,C&M-APMS Prem Rates,PRC DELEGATED CO-COMMISSIONING,BARNSLEY GP PRACTICE,13009039,"9,130.65",
Department of Health,NHS Barnsley CCG,30/06/2016,C&M-PMS Cost of Drugs -Dispensing,LOCAL ENHANCED SERVICES,BARNSLEY GP PRACTICE,13256108,"(84,533.16)",
Department of Health,NHS Barnsley CCG,30/06/2016,C&M-PMS Prsc Chrgs Cll&Rmttd by GPs,PRC DELEGATED CO-COMMISSIONING,BARNSLEY GP PRACTICE,13256108,"(5,376.00)",
Department of Health,NHS Barnsley CCG,30/06/2016,C&M-PMS Cost of Drugs -Dispensing,LOCAL ENHANCED SERVICES,BARNSLEY GP PRACTICE,13256109,"162,192.65",
Department of Health,NHS Barnsley CCG,30/06/2016,C&M-PMS Prsc Chrgs Cll&Rmttd by GPs,LOCAL ENHANCED SERVICES,BARNSLEY GP PRACTICE,13256109,"5,376.00",
Department of Health,NHS Barnsley CCG,30/06/2016,C&M-PMS Prof fees Dispensing,PRC DELEGATED CO-COMMISSIONING,BARNSLEY GP PRACTICE,13256109,"25,677.04",
Department of Health,NHS Barnsley CCG,30/06/2016,C&M-GMS QOF Aspiration,PRC DELEGATED CO-COMMISSIONING,BARNSLEY GP PRACTICE,13235221,"2,185.46",
Department of Health,NHS Barnsley CCG,30/06/2016,C&M-GMS QOF Achievement,PRC DELEGATED CO-COMMISSIONING,BARNSLEY GP PRACTICE,13235221,"9,238.91",
Department of Health,NHS Barnsley CCG,30/06/2016,C&M-GMS Prem Healthcentre Rent,PRC DELEGATED CO-COMMISSIONING,BARNSLEY GP PRACTICE,13235221,"1,520.42",
Department of Health,NHS Barnsley CCG,30/06/2016,C&M-GMS PCO Seniority,PRC DELEGATED CO-COMMISSIONING,BARNSLEY GP PRACTICE,13235221,876.94,
Department of Health,NHS Barnsley CCG,30/06/2016,C&M-GMS MPIG Correction Factor,PRC DELEGATED CO-COMMISSIONING,BARNSLEY GP PRACTICE,13235221,809.59,
Department of Health,NHS Barnsley CCG,30/06/2016,C&M-GMS Global Sum,PRC DELEGATED CO-COMMISSIONING,BARNSLEY GP PRACTICE,13235221,"19,109.08",
Department of Health,NHS Barnsley CCG,30/06/2016,C&M-GMS DES UNPLANNED ADMISSIONS,PRC DELEGATED CO-COMMISSIONING,BARNSLEY GP PRACTICE,13235221,"2,187.57",
Department of Health,NHS Barnsley CCG,30/06/2016,C&M-GMS DES Case FindingPats Dem,PRC DELEGATED CO-COMMISSIONING,BARNSLEY GP PRACTICE,13235221,"1,887.12",
Department of Health,NHS Barnsley CCG,30/06/2016,C&M-GMS DES Case FindingPats Dem,PRC DELEGATED CO-COMMISSIONING,BARNSLEY GP PRACTICE,13235201,41.94,
Department of Health,NHS Barnsley CCG,30/06/2016,C&M-GMS Global Sum,PRC DELEGATED CO-COMMISSIONING,BARNSLEY GP PRACTICE,13235201,"36,622.67",
Department of Health,NHS Barnsley CCG,30/06/2016,C&M-GMS PCO Seniority,PRC DELEGATED CO-COMMISSIONING,BARNSLEY GP PRACTICE,13235201,254.72,
Department of Health,NHS Barnsley CCG,30/06/2016,C&M-GMS Prem Notional Rent,PRC DELEGATED CO-COMMISSIONING,BARNSLEY GP PRACTICE,13235201,"1,416.67",
Department of Health,NHS Barnsley CCG,30/06/2016,C&M-GMS Prem Rates,PRC DELEGATED CO-COMMISSIONING,BARNSLEY GP PRACTICE,13235201,"1,042.62",
Department of Health,NHS Barnsley CCG,30/06/2016,C&M-GMS QOF Achievement,PRC DELEGATED CO-COMMISSIONING,BARNSLEY GP PRACTICE,13235201,"21,285.24",
Department of Health,NHS Barnsley CCG,30/06/2016,C&M-GMS QOF Aspiration,PRC DELEGATED CO-COMMISSIONING,BARNSLEY GP PRACTICE,13235201,"3,898.31",
Department of Health,NHS Barnsley CCG,30/06/2016,C&M-PMS Contract Value,PRC DELEGATED CO-COMMISSIONING,BARNSLEY GP PRACTICE,12988383,"(39,609.32)",
Department of Health,NHS Barnsley CCG,30/06/2016,C&M-PMS GP Statutory Levy,PRC DELEGATED CO-COMMISSIONING,BARNSLEY GP PRACTICE,12988383,(159.30),
Department of Health,NHS Barnsley CCG,30/06/2016,C&M-PMS Out of Hours Opt Outs,PRC DELEGATED CO-COMMISSIONING,BARNSLEY GP PRACTICE,12988383,(26.54),
Department of Health,NHS Barnsley CCG,30/06/2016,C&M-PMS Voluntary Levy,PRC DELEGATED CO-COMMISSIONING,BARNSLEY GP PRACTICE,12988383,(27.88),
Department of Health,NHS Barnsley CCG,30/06/2016,ME-PMS GP Pension EEs-PMS,PRC DELEGATED CO-COMMISSIONING,BARNSLEY GP PRACTICE,12988383,"(1,350.92)",
Department of Health,NHS Barnsley CCG,30/06/2016,ME-PMS GP Pension ERs Adjs - PMS,PRC DELEGATED CO-COMMISSIONING,BARNSLEY GP PRACTICE,12988383,"(1,332.28)",
Department of Health,NHS Barnsley CCG,30/06/2016,C&M-PMS QOF Aspiration,PRC DELEGATED CO-COMMISSIONING,BARNSLEY GP PRACTICE,13009038,"2,466.00",
Department of Health,NHS Barnsley CCG,30/06/2016,C&M-PMS QOF Achievement,PRC DELEGATED CO-COMMISSIONING,BARNSLEY GP PRACTICE,13009038,"8,250.35",
Department of Health,NHS Barnsley CCG,30/06/2016,C&M-PMS Prem Notional Rent,PRC DELEGATED CO-COMMISSIONING,BARNSLEY GP PRACTICE,13009038,"7,833.33",
Department of Health,NHS Barnsley CCG,30/06/2016,C&M-PMS Prem Healthcentre Rent,PRC DELEGATED CO-COMMISSIONING,BARNSLEY GP PRACTICE,13009038,"2,989.68",
Department of Health,NHS Barnsley CCG,30/06/2016,C&M-PMS PCO Seniority,PRC DELEGATED CO-COMMISSIONING,BARNSLEY GP PRACTICE,13009038,"1,624.16",
Department of Health,NHS Barnsley CCG,30/06/2016,C&M-PMS Out of Hours Opt Outs,PRC DELEGATED CO-COMMISSIONING,BARNSLEY GP PRACTICE,13009038,"(1,809.29)",
Department of Health,NHS Barnsley CCG,30/06/2016,C&M-PMS Contract Value,PRC DELEGATED CO-COMMISSIONING,BARNSLEY GP PRACTICE,13009038,"77,135.54",
Department of Health,NHS Barnsley CCG,30/06/2016,C&M-PMS Baseline Adjustment,PRC DELEGATED CO-COMMISSIONING,BARNSLEY GP PRACTICE,13009038,"5,074.17",
Department of Health,NHS Barnsley CCG,30/06/2016,C&M-APMS Prem Rates,PRC DELEGATED CO-COMMISSIONING,BARNSLEY GP PRACTICE,13009038,"7,242.85",
Department of Health,NHS Barnsley CCG,30/06/2016,C&M-GMS QOF Aspiration,PRC DELEGATED CO-COMMISSIONING,BARNSLEY GP PRACTICE,13235205,"10,127.48",
Department of Health,NHS Barnsley CCG,30/06/2016,C&M-GMS QOF Achievement,PRC DELEGATED CO-COMMISSIONING,BARNSLEY GP PRACTICE,13235205,"48,042.28",
Department of Health,NHS Barnsley CCG,30/06/2016,C&M-GMS Prem Rates,PRC DELEGATED CO-COMMISSIONING,BARNSLEY GP PRACTICE,13235205,"2,036.21",
Department of Health,NHS Barnsley CCG,30/06/2016,C&M-GMS Prem Notional Rent,PRC DELEGATED CO-COMMISSIONING,BARNSLEY GP PRACTICE,13235205,"6,208.33",
Department of Health,NHS Barnsley CCG,30/06/2016,C&M-GMS PCO Seniority,PRC DELEGATED CO-COMMISSIONING,BARNSLEY GP PRACTICE,13235205,"8,802.18",
Department of Health,NHS Barnsley CCG,30/06/2016,C&M-GMS Global Sum,PRC DELEGATED CO-COMMISSIONING,BARNSLEY GP PRACTICE,13235205,"94,461.68",
Department of Health,NHS Barnsley CCG,30/06/2016,C&M-GMS Dispensing Quality Sch,PRC DELEGATED CO-COMMISSIONING,BARNSLEY GP PRACTICE,13235205,"1,380.30",
Department of Health,NHS Barnsley CCG,30/06/2016,C&M-GMS DES UNPLANNED ADMISSIONS,PRC DELEGATED CO-COMMISSIONING,BARNSLEY GP PRACTICE,13235205,"9,986.13",
Department of Health,NHS Barnsley CCG,30/06/2016,C&M-GMS DES Case FindingPats Dem,PRC DELEGATED CO-COMMISSIONING,BARNSLEY GP PRACTICE,13235205,"3,816.17",
Department of Health,NHS Barnsley CCG,30/06/2016,C&M-PMS Contract Value,PRC DELEGATED CO-COMMISSIONING,BARNSLEY GP PRACTICE,12988385,"(82,588.65)",
Department of Health,NHS Barnsley CCG,30/06/2016,C&M-PMS GP Statutory Levy,PRC DELEGATED CO-COMMISSIONING,BARNSLEY GP PRACTICE,12988385,(399.77),
Department of Health,NHS Barnsley CCG,30/06/2016,C&M-PMS Out of Hours Opt Outs,PRC DELEGATED CO-COMMISSIONING,BARNSLEY GP PRACTICE,12988385,(68.06),
Department of Health,NHS Barnsley CCG,30/06/2016,C&M-PMS Voluntary Levy,PRC DELEGATED CO-COMMISSIONING,BARNSLEY GP PRACTICE,12988385,(69.96),
Department of Health,NHS Barnsley CCG,30/06/2016,ME - PMS TPS Added Years Adj EEs,PRC DELEGATED CO-COMMISSIONING,BARNSLEY GP PRACTICE,12988385,(585.27),
Department of Health,NHS Barnsley CCG,30/06/2016,ME-PMS GP Pension EEs-PMS,PRC DELEGATED CO-COMMISSIONING,BARNSLEY GP PRACTICE,12988385,"(9,199.44)",
Department of Health,NHS Barnsley CCG,30/06/2016,ME-PMS GP Pension ERs Adjs - PMS,PRC DELEGATED CO-COMMISSIONING,BARNSLEY GP PRACTICE,12988385,"(9,496.74)",
Department of Health,NHS Barnsley CCG,30/06/2016,C&M-PMS QOF Aspiration,PRC DELEGATED CO-COMMISSIONING,BARNSLEY GP PRACTICE,13009041,"9,037.78",
Department of Health,NHS Barnsley CCG,30/06/2016,C&M-PMS QOF Achievement,PRC DELEGATED CO-COMMISSIONING,BARNSLEY GP PRACTICE,13009041,"33,749.48",
Department of Health,NHS Barnsley CCG,30/06/2016,C&M-PMS Prem Notional Rent,PRC DELEGATED CO-COMMISSIONING,BARNSLEY GP PRACTICE,13009041,"13,500.00",
Department of Health,NHS Barnsley CCG,30/06/2016,C&M-PMS PCO Seniority,PRC DELEGATED CO-COMMISSIONING,BARNSLEY GP PRACTICE,13009041,"3,836.14",
Department of Health,NHS Barnsley CCG,30/06/2016,C&M-PMS Out of Hours Opt Outs,PRC DELEGATED CO-COMMISSIONING,BARNSLEY GP PRACTICE,13009041,"(4,639.35)",
Department of Health,NHS Barnsley CCG,30/06/2016,C&M-PMS DES Learn Dsblty Hlth Chk,PRC DELEGATED CO-COMMISSIONING,BARNSLEY GP PRACTICE,13009041,232.00,
Department of Health,NHS Barnsley CCG,30/06/2016,C&M-PMS DES Case FindingPats Dem,PRC DELEGATED CO-COMMISSIONING,BARNSLEY GP PRACTICE,13009041,"1,258.08",
Department of Health,NHS Barnsley CCG,30/06/2016,C&M-PMS Contract Value,PRC DELEGATED CO-COMMISSIONING,BARNSLEY GP PRACTICE,13009041,"173,529.64",
Department of Health,NHS Barnsley CCG,30/06/2016,C&M-APMS Prem Rates,PRC DELEGATED CO-COMMISSIONING,BARNSLEY GP PRACTICE,13009041,"1,560.90",
Department of Health,NHS Barnsley CCG,30/06/2016,Clinical&Medical-Clinical Other,COMMISSIONING SCHEMES,BARNSLEY GP PRACTICE,13062680,"37,516.65",
Department of Health,NHS Barnsley CCG,30/06/2016,C&M-GMS QOF Aspiration,PRC DELEGATED CO-COMMISSIONING,BARNSLEY GP PRACTICE,13235203,"9,007.62",
Department of Health,NHS Barnsley CCG,30/06/2016,C&M-GMS QOF Achievement,PRC DELEGATED CO-COMMISSIONING,BARNSLEY GP PRACTICE,13235203,"61,188.57",
Department of Health,NHS Barnsley CCG,30/06/2016,C&M-GMS Prem Healthcentre Rent,PRC DELEGATED CO-COMMISSIONING,BARNSLEY GP PRACTICE,13235203,"31,550.77",
Department of Health,NHS Barnsley CCG,30/06/2016,C&M-GMS PCO Seniority,PRC DELEGATED CO-COMMISSIONING,BARNSLEY GP PRACTICE,13235203,"3,756.96",
Department of Health,NHS Barnsley CCG,30/06/2016,C&M-GMS Global Sum,PRC DELEGATED CO-COMMISSIONING,BARNSLEY GP PRACTICE,13235203,"86,294.40",
Department of Health,NHS Barnsley CCG,30/06/2016,C&M-GMS DES UNPLANNED ADMISSIONS,PRC DELEGATED CO-COMMISSIONING,BARNSLEY GP PRACTICE,13235203,"6,822.20",
Department of Health,NHS Barnsley CCG,30/06/2016,C&M-GMS DES Case FindingPats Dem,PRC DELEGATED CO-COMMISSIONING,BARNSLEY GP PRACTICE,13235207,964.53,
Department of Health,NHS Barnsley CCG,30/06/2016,C&M-GMS DES UNPLANNED ADMISSIONS,PRC DELEGATED CO-COMMISSIONING,BARNSLEY GP PRACTICE,13235207,"7,458.22",
Department of Health,NHS Barnsley CCG,30/06/2016,C&M-GMS Global Sum,PRC DELEGATED CO-COMMISSIONING,BARNSLEY GP PRACTICE,13235207,"70,923.74",
Department of Health,NHS Barnsley CCG,30/06/2016,C&M-GMS PCO Seniority,PRC DELEGATED CO-COMMISSIONING,BARNSLEY GP PRACTICE,13235207,"1,763.52",
Department of Health,NHS Barnsley CCG,30/06/2016,C&M-GMS QOF Achievement,PRC DELEGATED CO-COMMISSIONING,BARNSLEY GP PRACTICE,13235207,"45,448.30",
Department of Health,NHS Barnsley CCG,30/06/2016,C&M-GMS QOF Aspiration,PRC DELEGATED CO-COMMISSIONING,BARNSLEY GP PRACTICE,13235207,"9,545.99",
Department of Health,NHS Barnsley CCG,30/06/2016,ME-PMS GP Pension ERs Adjs - PMS,PRC DELEGATED CO-COMMISSIONING,BARNSLEY GP PRACTICE,12988386,"(8,186.76)",
Department of Health,NHS Barnsley CCG,30/06/2016,ME-PMS GP Pension EEs-PMS,PRC DELEGATED CO-COMMISSIONING,BARNSLEY GP PRACTICE,12988386,"(7,526.25)",
Department of Health,NHS Barnsley CCG,30/06/2016,ME - PMS TPS Added Years Adj EEs,PRC DELEGATED CO-COMMISSIONING,BARNSLEY GP PRACTICE,12988386,(266.67),
Department of Health,NHS Barnsley CCG,30/06/2016,C&M-PMS Voluntary Levy,PRC DELEGATED CO-COMMISSIONING,BARNSLEY GP PRACTICE,12988386,(68.22),
Department of Health,NHS Barnsley CCG,30/06/2016,C&M-PMS Out of Hours Opt Outs,PRC DELEGATED CO-COMMISSIONING,BARNSLEY GP PRACTICE,12988386,(118.26),
Department of Health,NHS Barnsley CCG,30/06/2016,C&M-PMS GP Statutory Levy,PRC DELEGATED CO-COMMISSIONING,BARNSLEY GP PRACTICE,12988386,(389.80),
Department of Health,NHS Barnsley CCG,30/06/2016,C&M-PMS Contract Value,PRC DELEGATED CO-COMMISSIONING,BARNSLEY GP PRACTICE,12988386,"(74,620.84)",
Department of Health,NHS Barnsley CCG,30/06/2016,C&M-PMS QOF Aspiration,PRC DELEGATED CO-COMMISSIONING,BARNSLEY GP PRACTICE,13009042,"9,498.69",
Department of Health,NHS Barnsley CCG,30/06/2016,C&M-PMS QOF Achievement,PRC DELEGATED CO-COMMISSIONING,BARNSLEY GP PRACTICE,13009042,"57,940.67",
Department of Health,NHS Barnsley CCG,30/06/2016,C&M-PMS Prem Notional Rent,PRC DELEGATED CO-COMMISSIONING,BARNSLEY GP PRACTICE,13009042,"8,125.00",
Department of Health,NHS Barnsley CCG,30/06/2016,C&M-PMS PCO Seniority,PRC DELEGATED CO-COMMISSIONING,BARNSLEY GP PRACTICE,13009042,"4,530.75",
Department of Health,NHS Barnsley CCG,30/06/2016,C&M-PMS Out of Hours Opt Outs,PRC DELEGATED CO-COMMISSIONING,BARNSLEY GP PRACTICE,13009042,"(4,208.83)",
Department of Health,NHS Barnsley CCG,30/06/2016,C&M-PMS DES UNPLANNED ADMISSIONS,PRC DELEGATED CO-COMMISSIONING,BARNSLEY GP PRACTICE,13009042,"8,848.84",
Department of Health,NHS Barnsley CCG,30/06/2016,C&M-PMS DES Learn Dsblty Hlth Chk,PRC DELEGATED CO-COMMISSIONING,BARNSLEY GP PRACTICE,13009042,"3,016.00",
Department of Health,NHS Barnsley CCG,30/06/2016,C&M-PMS DES Case FindingPats Dem,PRC DELEGATED CO-COMMISSIONING,BARNSLEY GP PRACTICE,13009042,796.78,
Department of Health,NHS Barnsley CCG,30/06/2016,C&M-PMS Contract Value,PRC DELEGATED CO-COMMISSIONING,BARNSLEY GP PRACTICE,13009042,"158,233.19",
Department of Health,NHS Barnsley CCG,30/06/2016,C&M-APMS Prem Rates,PRC DELEGATED CO-COMMISSIONING,BARNSLEY GP PRACTICE,13009042,"2,855.87",
Department of Health,NHS Barnsley CCG,30/06/2016,C&M-GMS QOF Aspiration,PRC DELEGATED CO-COMMISSIONING,BARNSLEY GP PRACTICE,13235209,"2,279.92",
Department of Health,NHS Barnsley CCG,30/06/2016,C&M-GMS QOF Achievement,PRC DELEGATED CO-COMMISSIONING,BARNSLEY GP PRACTICE,13235209,"14,005.01",
Department of Health,NHS Barnsley CCG,30/06/2016,C&M-GMS Prem Water Rates,PRC DELEGATED CO-COMMISSIONING,BARNSLEY GP PRACTICE,13235209,78.81,
Department of Health,NHS Barnsley CCG,30/06/2016,C&M-GMS Prem Rates,PRC DELEGATED CO-COMMISSIONING,BARNSLEY GP PRACTICE,13235209,433.58,
Department of Health,NHS Barnsley CCG,30/06/2016,C&M-GMS Prem Notional Rent,PRC DELEGATED CO-COMMISSIONING,BARNSLEY GP PRACTICE,13235209,"1,572.92",
Department of Health,NHS Barnsley CCG,30/06/2016,C&M-GMS PCO Seniority,PRC DELEGATED CO-COMMISSIONING,BARNSLEY GP PRACTICE,13235209,"2,140.71",
Department of Health,NHS Barnsley CCG,30/06/2016,C&M-GMS Global Sum,PRC DELEGATED CO-COMMISSIONING,BARNSLEY GP PRACTICE,13235209,"22,583.89",
Department of Health,NHS Barnsley CCG,30/06/2016,C&M-GMS DES Learn Dsblty Hlth Chk,PRC DELEGATED CO-COMMISSIONING,BARNSLEY GP PRACTICE,13235209,116.00,
Department of Health,NHS Barnsley CCG,30/06/2016,C&M-GMS DES Case FindingPats Dem,PRC DELEGATED CO-COMMISSIONING,BARNSLEY GP PRACTICE,13235209,83.87,
Department of Health,NHS Barnsley CCG,30/06/2016,C&M-GMS QOF Aspiration,PRC DELEGATED CO-COMMISSIONING,BARNSLEY GP PRACTICE,13235224,"7,060.35",
Department of Health,NHS Barnsley CCG,30/06/2016,C&M-GMS QOF Achievement,PRC DELEGATED CO-COMMISSIONING,BARNSLEY GP PRACTICE,13235224,"32,124.69",
Department of Health,NHS Barnsley CCG,30/06/2016,C&M-GMS Prem Actual Rent,PRC DELEGATED CO-COMMISSIONING,BARNSLEY GP PRACTICE,13235224,"4,750.00",
Department of Health,NHS Barnsley CCG,30/06/2016,C&M-GMS PCO Seniority,PRC DELEGATED CO-COMMISSIONING,BARNSLEY GP PRACTICE,13235224,900.54,
Department of Health,NHS Barnsley CCG,30/06/2016,C&M-GMS Global Sum,PRC DELEGATED CO-COMMISSIONING,BARNSLEY GP PRACTICE,13235224,"56,835.92",
Department of Health,NHS Barnsley CCG,30/06/2016,C&M-GMS DES UNPLANNED ADMISSIONS,PRC DELEGATED CO-COMMISSIONING,BARNSLEY GP PRACTICE,13235224,"6,226.99",
Department of Health,NHS Barnsley CCG,30/06/2016,C&M-GMS DES Case FindingPats Dem,PRC DELEGATED CO-COMMISSIONING,BARNSLEY GP PRACTICE,13235224,"3,816.17",
Department of Health,NHS Barnsley CCG,30/06/2016,C&M-PMS Contract Value,PRC DELEGATED CO-COMMISSIONING,BARNSLEY GP PRACTICE,12988387,"(78,437.25)",
Department of Health,NHS Barnsley CCG,30/06/2016,C&M-PMS GP Statutory Levy,PRC DELEGATED CO-COMMISSIONING,BARNSLEY GP PRACTICE,12988387,(368.97),
Department of Health,NHS Barnsley CCG,30/06/2016,C&M-PMS Out of Hours Opt Outs,PRC DELEGATED CO-COMMISSIONING,BARNSLEY GP PRACTICE,12988387,(76.56),
Department of Health,NHS Barnsley CCG,30/06/2016,C&M-PMS Voluntary Levy,PRC DELEGATED CO-COMMISSIONING,BARNSLEY GP PRACTICE,12988387,(64.57),
Department of Health,NHS Barnsley CCG,30/06/2016,ME-PMS GP Pension EEs-PMS,PRC DELEGATED CO-COMMISSIONING,BARNSLEY GP PRACTICE,12988387,"(5,958.75)",
Department of Health,NHS Barnsley CCG,30/06/2016,ME-PMS GP Pension ERs Adjs - PMS,PRC DELEGATED CO-COMMISSIONING,BARNSLEY GP PRACTICE,12988387,"(6,423.09)",
Department of Health,NHS Barnsley CCG,30/06/2016,C&M-PMS QOF Aspiration,PRC DELEGATED CO-COMMISSIONING,BARNSLEY GP PRACTICE,13009043,"9,731.41",
Department of Health,NHS Barnsley CCG,30/06/2016,C&M-PMS QOF Achievement,PRC DELEGATED CO-COMMISSIONING,BARNSLEY GP PRACTICE,13009043,"46,928.62",
Department of Health,NHS Barnsley CCG,30/06/2016,C&M-PMS Prem Actual Rent,PRC DELEGATED CO-COMMISSIONING,BARNSLEY GP PRACTICE,13009043,"12,708.33",
Department of Health,NHS Barnsley CCG,30/06/2016,C&M-PMS PCO Seniority,PRC DELEGATED CO-COMMISSIONING,BARNSLEY GP PRACTICE,13009043,"1,569.99",
Department of Health,NHS Barnsley CCG,30/06/2016,C&M-PMS Out of Hours Opt Outs,PRC DELEGATED CO-COMMISSIONING,BARNSLEY GP PRACTICE,13009043,"(4,424.42)",
Department of Health,NHS Barnsley CCG,30/06/2016,C&M-PMS DES UNPLANNED ADMISSIONS,PRC DELEGATED CO-COMMISSIONING,BARNSLEY GP PRACTICE,13009043,"8,403.78",
Department of Health,NHS Barnsley CCG,30/06/2016,C&M-PMS DES Learn Dsblty Hlth Chk,PRC DELEGATED CO-COMMISSIONING,BARNSLEY GP PRACTICE,13009043,"5,104.00",
Department of Health,NHS Barnsley CCG,30/06/2016,C&M-PMS DES Case FindingPats Dem,PRC DELEGATED CO-COMMISSIONING,BARNSLEY GP PRACTICE,13009043,"1,006.46",
Department of Health,NHS Barnsley CCG,30/06/2016,C&M-PMS Contract Value,PRC DELEGATED CO-COMMISSIONING,BARNSLEY GP PRACTICE,13009043,"165,400.82",
Department of Health,NHS Barnsley CCG,30/06/2016,C&M-APMS Prem Rates,PRC DELEGATED CO-COMMISSIONING,BARNSLEY GP PRACTICE,13009043,"6,461.00",
Department of Health,NHS Barnsley CCG,30/06/2016,ME-PMS GP Pension ERs Adjs - PMS,PRC DELEGATED CO-COMMISSIONING,BARNSLEY GP PRACTICE,12988388,"(3,963.45)",
Department of Health,NHS Barnsley CCG,30/06/2016,ME-PMS GP Pension EEs-PMS,PRC DELEGATED CO-COMMISSIONING,BARNSLEY GP PRACTICE,12988388,"(3,701.04)",
Department of Health,NHS Barnsley CCG,30/06/2016,C&M-PMS Out of Hours Opt Outs,PRC DELEGATED CO-COMMISSIONING,BARNSLEY GP PRACTICE,12988388,(90.23),
Department of Health,NHS Barnsley CCG,30/06/2016,C&M-PMS GP Statutory Levy,PRC DELEGATED CO-COMMISSIONING,BARNSLEY GP PRACTICE,12988388,(349.63),
Department of Health,NHS Barnsley CCG,30/06/2016,C&M-PMS Contract Value,PRC DELEGATED CO-COMMISSIONING,BARNSLEY GP PRACTICE,12988388,"(67,727.16)",
Department of Health,NHS Barnsley CCG,30/06/2016,C&M-APMS Prem Rates,PRC DELEGATED CO-COMMISSIONING,BARNSLEY GP PRACTICE,13009044,"4,286.63",
Department of Health,NHS Barnsley CCG,30/06/2016,C&M-PMS Contract Value,PRC DELEGATED CO-COMMISSIONING,BARNSLEY GP PRACTICE,13009044,"143,282.39",
Department of Health,NHS Barnsley CCG,30/06/2016,C&M-PMS Out of Hours Opt Outs,PRC DELEGATED CO-COMMISSIONING,BARNSLEY GP PRACTICE,13009044,"(3,820.17)",
Department of Health,NHS Barnsley CCG,30/06/2016,C&M-PMS PCO Seniority,PRC DELEGATED CO-COMMISSIONING,BARNSLEY GP PRACTICE,13009044,"1,669.69",
Department of Health,NHS Barnsley CCG,30/06/2016,C&M-PMS Prem Actual Rent,PRC DELEGATED CO-COMMISSIONING,BARNSLEY GP PRACTICE,13009044,"8,566.67",
Department of Health,NHS Barnsley CCG,30/06/2016,C&M-PMS QOF Achievement,PRC DELEGATED CO-COMMISSIONING,BARNSLEY GP PRACTICE,13009044,"38,219.50",
Department of Health,NHS Barnsley CCG,30/06/2016,C&M-PMS QOF Aspiration,PRC DELEGATED CO-COMMISSIONING,BARNSLEY GP PRACTICE,13009044,"7,252.24",
Department of Health,NHS Barnsley CCG,30/06/2016,Clinical&Medical-Clinical Other,COMMISSIONING SCHEMES,BARNSLEY GP PRACTICE,13063001,"29,589.46",
Department of Health,NHS Barnsley CCG,30/06/2016,C&M-GMS DES Case FindingPats Dem,PRC DELEGATED CO-COMMISSIONING,BARNSLEY GP PRACTICE,13235211,419.36,
Department of Health,NHS Barnsley CCG,30/06/2016,C&M-GMS Global Sum,PRC DELEGATED CO-COMMISSIONING,BARNSLEY GP PRACTICE,13235211,"51,334.05",
Department of Health,NHS Barnsley CCG,30/06/2016,C&M-GMS PCO Seniority,PRC DELEGATED CO-COMMISSIONING,BARNSLEY GP PRACTICE,13235211,"3,067.76",
Department of Health,NHS Barnsley CCG,30/06/2016,C&M-GMS Prem Healthcentre Rent,PRC DELEGATED CO-COMMISSIONING,BARNSLEY GP PRACTICE,13235211,"20,371.30",
Department of Health,NHS Barnsley CCG,30/06/2016,C&M-GMS QOF Achievement,PRC DELEGATED CO-COMMISSIONING,BARNSLEY GP PRACTICE,13235211,"28,687.62",
Department of Health,NHS Barnsley CCG,30/06/2016,C&M-GMS QOF Aspiration,PRC DELEGATED CO-COMMISSIONING,BARNSLEY GP PRACTICE,13235211,"5,719.94",
Department of Health,NHS Barnsley CCG,30/06/2016,Clinical&Medical-Clinical Other,COMMISSIONING SCHEMES,BARNSLEY GP PRACTICE,12872094,"49,186.46",
Department of Health,NHS Barnsley CCG,30/06/2016,C&M-PMS Contract Value,PRC DELEGATED CO-COMMISSIONING,BARNSLEY GP PRACTICE,12988389,"(84,643.34)",
Department of Health,NHS Barnsley CCG,30/06/2016,C&M-PMS GP Statutory Levy,PRC DELEGATED CO-COMMISSIONING,BARNSLEY GP PRACTICE,12988389,(441.27),
Department of Health,NHS Barnsley CCG,30/06/2016,C&M-PMS Out of Hours Opt Outs,PRC DELEGATED CO-COMMISSIONING,BARNSLEY GP PRACTICE,12988389,(94.51),
Department of Health,NHS Barnsley CCG,30/06/2016,C&M-PMS Voluntary Levy,PRC DELEGATED CO-COMMISSIONING,BARNSLEY GP PRACTICE,12988389,(77.22),
Department of Health,NHS Barnsley CCG,30/06/2016,ME-PMS GP Pension EEs-PMS,PRC DELEGATED CO-COMMISSIONING,BARNSLEY GP PRACTICE,12988389,"(6,753.36)",
Department of Health,NHS Barnsley CCG,30/06/2016,ME-PMS GP Pension ERs Adjs - PMS,PRC DELEGATED CO-COMMISSIONING,BARNSLEY GP PRACTICE,12988389,"(7,565.93)",
Department of Health,NHS Barnsley CCG,30/06/2016,C&M-PMS QOF Aspiration,PRC DELEGATED CO-COMMISSIONING,BARNSLEY GP PRACTICE,12988390,"11,102.10",
Department of Health,NHS Barnsley CCG,30/06/2016,C&M-PMS QOF Achievement,PRC DELEGATED CO-COMMISSIONING,BARNSLEY GP PRACTICE,12988390,"51,318.83",
Department of Health,NHS Barnsley CCG,30/06/2016,C&M-PMS PCO Seniority,PRC DELEGATED CO-COMMISSIONING,BARNSLEY GP PRACTICE,12988390,"5,744.63",
Department of Health,NHS Barnsley CCG,30/06/2016,C&M-PMS Out of Hours Opt Outs,PRC DELEGATED CO-COMMISSIONING,BARNSLEY GP PRACTICE,12988390,"(4,774.83)",
Department of Health,NHS Barnsley CCG,30/06/2016,C&M-PMS DES Learn Dsblty Hlth Chk,PRC DELEGATED CO-COMMISSIONING,BARNSLEY GP PRACTICE,12988390,"2,320.00",
Department of Health,NHS Barnsley CCG,30/06/2016,C&M-PMS DES Case FindingPats Dem,PRC DELEGATED CO-COMMISSIONING,BARNSLEY GP PRACTICE,12988390,"5,325.86",
Department of Health,NHS Barnsley CCG,30/06/2016,C&M-PMS Contract Value,PRC DELEGATED CO-COMMISSIONING,BARNSLEY GP PRACTICE,12988390,"178,715.17",
Department of Health,NHS Barnsley CCG,30/06/2016,C&M-GMS QOF Aspiration,PRC DELEGATED CO-COMMISSIONING,BARNSLEY GP PRACTICE,13235215,"3,306.22",
Department of Health,NHS Barnsley CCG,30/06/2016,C&M-GMS QOF Achievement,PRC DELEGATED CO-COMMISSIONING,BARNSLEY GP PRACTICE,13235215,"14,689.85",
Department of Health,NHS Barnsley CCG,30/06/2016,C&M-GMS Prem Rates,PRC DELEGATED CO-COMMISSIONING,BARNSLEY GP PRACTICE,13235215,973.29,
Department of Health,NHS Barnsley CCG,30/06/2016,C&M-GMS Prem Notional Rent,PRC DELEGATED CO-COMMISSIONING,BARNSLEY GP PRACTICE,13235215,"2,541.67",
Department of Health,NHS Barnsley CCG,30/06/2016,C&M-GMS PCO Seniority,PRC DELEGATED CO-COMMISSIONING,BARNSLEY GP PRACTICE,13235215,"3,576.61",
Department of Health,NHS Barnsley CCG,30/06/2016,C&M-GMS Global Sum,PRC DELEGATED CO-COMMISSIONING,BARNSLEY GP PRACTICE,13235215,"41,949.69",
Department of Health,NHS Barnsley CCG,30/06/2016,C&M-GMS DES UNPLANNED ADMISSIONS,PRC DELEGATED CO-COMMISSIONING,BARNSLEY GP PRACTICE,13235215,"4,432.12",
Department of Health,NHS Barnsley CCG,30/06/2016,C&M-GMS DES Case FindingPats Dem,PRC DELEGATED CO-COMMISSIONING,BARNSLEY GP PRACTICE,13235215,"1,132.27",
Department of Health,NHS Barnsley CCG,30/06/2016,Cont Care-Physical Disab (65+),CHC ADULT FULLY FUNDED,FOUR SEASONS HEALTH CARE LTD,13225918,"31,104.00",
Department of Health,NHS Barnsley CCG,30/06/2016,C&M-GMS Global Sum,PRC DELEGATED CO-COMMISSIONING,BARNSLEY GP PRACTICE,13235219,"23,507.58",
Department of Health,NHS Barnsley CCG,30/06/2016,C&M-GMS PCO Seniority,PRC DELEGATED CO-COMMISSIONING,BARNSLEY GP PRACTICE,13235219,"1,841.53",
Department of Health,NHS Barnsley CCG,30/06/2016,C&M-GMS Prem Healthcentre Rent,PRC DELEGATED CO-COMMISSIONING,BARNSLEY GP PRACTICE,13235219,"7,688.22",
Department of Health,NHS Barnsley CCG,30/06/2016,C&M-GMS QOF Achievement,PRC DELEGATED CO-COMMISSIONING,BARNSLEY GP PRACTICE,13235219,"18,695.96",
Department of Health,NHS Barnsley CCG,30/06/2016,C&M-GMS QOF Aspiration,PRC DELEGATED CO-COMMISSIONING,BARNSLEY GP PRACTICE,13235219,"2,021.85",
Department of Health,NHS Barnsley CCG,30/06/2016,C&M-PMS Contract Value,PRC DELEGATED CO-COMMISSIONING,BARNSLEY GP PRACTICE,12991638,"(32,829.50)",
Department of Health,NHS Barnsley CCG,30/06/2016,C&M-PMS GP Statutory Levy,PRC DELEGATED CO-COMMISSIONING,BARNSLEY GP PRACTICE,12991638,(141.27),
Department of Health,NHS Barnsley CCG,30/06/2016,C&M-PMS Out of Hours Opt Outs,PRC DELEGATED CO-COMMISSIONING,BARNSLEY GP PRACTICE,12991638,(30.66),
Department of Health,NHS Barnsley CCG,30/06/2016,C&M-PMS Voluntary Levy,PRC DELEGATED CO-COMMISSIONING,BARNSLEY GP PRACTICE,12991638,(24.72),
Department of Health,NHS Barnsley CCG,30/06/2016,ME-PMS GP Pension EEs-PMS,PRC DELEGATED CO-COMMISSIONING,BARNSLEY GP PRACTICE,12991638,"(1,287.50)",
Department of Health,NHS Barnsley CCG,30/06/2016,ME-PMS GP Pension ERs Adjs - PMS,PRC DELEGATED CO-COMMISSIONING,BARNSLEY GP PRACTICE,12991638,"(1,472.90)",
Department of Health,NHS Barnsley CCG,30/06/2016,C&M-PMS QOF Aspiration,PRC DELEGATED CO-COMMISSIONING,BARNSLEY GP PRACTICE,12991639,"4,195.24",
Department of Health,NHS Barnsley CCG,30/06/2016,C&M-PMS QOF Achievement,PRC DELEGATED CO-COMMISSIONING,BARNSLEY GP PRACTICE,12991639,"23,871.06",
Department of Health,NHS Barnsley CCG,30/06/2016,C&M-PMS Prem Healthcentre Rent,PRC DELEGATED CO-COMMISSIONING,BARNSLEY GP PRACTICE,12991639,"10,765.50",
Department of Health,NHS Barnsley CCG,30/06/2016,C&M-PMS Out of Hours Opt Outs,PRC DELEGATED CO-COMMISSIONING,BARNSLEY GP PRACTICE,12991639,"(1,768.50)",
Department of Health,NHS Barnsley CCG,30/06/2016,C&M-PMS DES UNPLANNED ADMISSIONS,PRC DELEGATED CO-COMMISSIONING,BARNSLEY GP PRACTICE,12991639,"3,292.52",
Department of Health,NHS Barnsley CCG,30/06/2016,C&M-PMS DES Case FindingPats Dem,PRC DELEGATED CO-COMMISSIONING,BARNSLEY GP PRACTICE,12991639,"3,271.00",
Department of Health,NHS Barnsley CCG,30/06/2016,C&M-PMS Contract Value,PRC DELEGATED CO-COMMISSIONING,BARNSLEY GP PRACTICE,12991639,"69,067.10",
Department of Health,NHS Barnsley CCG,30/06/2016,Statutory Mat Pay < 1 yr,BALANCE SHEET,HMRC,13055409,"(7,166.54)",
Department of Health,NHS Barnsley CCG,30/06/2016,National Insurance < 1 yr-NI-EES,BALANCE SHEET,HMRC,13055409,"21,322.35",
Department of Health,NHS Barnsley CCG,30/06/2016,National Insurance < 1 yr-NI- ERS,BALANCE SHEET,HMRC,13055409,"30,813.06",
Department of Health,NHS Barnsley CCG,30/06/2016,Income tax <1Yr-Student Loans,BALANCE SHEET,HMRC,13055409,592.00,
Department of Health,NHS Barnsley CCG,30/06/2016,Income tax <1Yr,BALANCE SHEET,HMRC,13055409,"44,644.22",
Department of Health,NHS Barnsley CCG,30/06/2016,C&M-GMS QOF Aspiration,PRC DELEGATED CO-COMMISSIONING,BARNSLEY GP PRACTICE,13235217,"8,766.44",
Department of Health,NHS Barnsley CCG,30/06/2016,C&M-GMS QOF Achievement,PRC DELEGATED CO-COMMISSIONING,BARNSLEY GP PRACTICE,13235217,"37,264.47",
Department of Health,NHS Barnsley CCG,30/06/2016,C&M-GMS Prem Rates,PRC DELEGATED CO-COMMISSIONING,BARNSLEY GP PRACTICE,13235217,653.40,
Department of Health,NHS Barnsley CCG,30/06/2016,C&M-GMS Prem Notional Rent,PRC DELEGATED CO-COMMISSIONING,BARNSLEY GP PRACTICE,13235217,"1,312.50",
Department of Health,NHS Barnsley CCG,30/06/2016,C&M-GMS Prem Healthcentre Rent,PRC DELEGATED CO-COMMISSIONING,BARNSLEY GP PRACTICE,13235217,"20,980.38",
Department of Health,NHS Barnsley CCG,30/06/2016,C&M-GMS PCO Seniority,PRC DELEGATED CO-COMMISSIONING,BARNSLEY GP PRACTICE,13235217,"5,559.23",
Department of Health,NHS Barnsley CCG,30/06/2016,C&M-GMS Global Sum,PRC DELEGATED CO-COMMISSIONING,BARNSLEY GP PRACTICE,13235217,"76,489.48",
Department of Health,NHS Barnsley CCG,30/06/2016,C&M-GMS DES UNPLANNED ADMISSIONS,PRC DELEGATED CO-COMMISSIONING,BARNSLEY GP PRACTICE,13235217,"8,738.73",
Department of Health,NHS Barnsley CCG,30/06/2016,C&M-GMS DES Learn Dsblty Hlth Chk,PRC DELEGATED CO-COMMISSIONING,BARNSLEY GP PRACTICE,13235217,"3,480.00",
Department of Health,NHS Barnsley CCG,30/06/2016,C&M-GMS DES Case FindingPats Dem,PRC DELEGATED CO-COMMISSIONING,BARNSLEY GP PRACTICE,13235217,"16,648.56",
Department of Health,NHS Barnsley CCG,30/06/2016,Clinical&Medical-Clinical Other,COMMISSIONING SCHEMES,BARNSLEY GP PRACTICE,13027632,"37,669.78",
Department of Health,NHS Barnsley CCG,30/06/2016,Clinical&Medical-Clinical Other,COMMISSIONING SCHEMES,BARNSLEY GP PRACTICE,12872222,"47,517.40",
Department of Health,NHS Barnsley CCG,30/06/2016,C&M-PMS Contract Value,PRC DELEGATED CO-COMMISSIONING,BARNSLEY GP PRACTICE,12988391,"(44,156.29)",
Department of Health,NHS Barnsley CCG,30/06/2016,C&M-PMS GP Statutory Levy,PRC DELEGATED CO-COMMISSIONING,BARNSLEY GP PRACTICE,12988391,(209.87),
Department of Health,NHS Barnsley CCG,30/06/2016,C&M-PMS Out of Hours Opt Outs,PRC DELEGATED CO-COMMISSIONING,BARNSLEY GP PRACTICE,12988391,(31.62),
Department of Health,NHS Barnsley CCG,30/06/2016,C&M-PMS Voluntary Levy,PRC DELEGATED CO-COMMISSIONING,BARNSLEY GP PRACTICE,12988391,(36.73),
Department of Health,NHS Barnsley CCG,30/06/2016,ME-PMS GP Pension EEs-PMS,PRC DELEGATED CO-COMMISSIONING,BARNSLEY GP PRACTICE,12988391,(846.79),
Department of Health,NHS Barnsley CCG,30/06/2016,ME-PMS GP Pension ERs Adjs - PMS,PRC DELEGATED CO-COMMISSIONING,BARNSLEY GP PRACTICE,12988391,(896.97),
Department of Health,NHS Barnsley CCG,30/06/2016,C&M-PMS QOF Aspiration,PRC DELEGATED CO-COMMISSIONING,BARNSLEY GP PRACTICE,12988392,"4,198.69",
Department of Health,NHS Barnsley CCG,30/06/2016,C&M-PMS QOF Achievement,PRC DELEGATED CO-COMMISSIONING,BARNSLEY GP PRACTICE,12988392,"24,554.50",
Department of Health,NHS Barnsley CCG,30/06/2016,C&M-PMS Prem Notional Rent,PRC DELEGATED CO-COMMISSIONING,BARNSLEY GP PRACTICE,12988392,"3,583.33",
Department of Health,NHS Barnsley CCG,30/06/2016,C&M-PMS Prem Healthcentre Rent,PRC DELEGATED CO-COMMISSIONING,BARNSLEY GP PRACTICE,12988392,"5,057.49",
Department of Health,NHS Barnsley CCG,30/06/2016,C&M-PMS PCO Seniority,PRC DELEGATED CO-COMMISSIONING,BARNSLEY GP PRACTICE,12988392,"1,434.49",
Department of Health,NHS Barnsley CCG,30/06/2016,C&M-PMS Out of Hours Opt Outs,PRC DELEGATED CO-COMMISSIONING,BARNSLEY GP PRACTICE,12988392,"(2,155.39)",
Department of Health,NHS Barnsley CCG,30/06/2016,C&M-PMS DES Case FindingPats Dem,PRC DELEGATED CO-COMMISSIONING,BARNSLEY GP PRACTICE,12988392,"2,012.92",
Department of Health,NHS Barnsley CCG,30/06/2016,C&M-PMS Contract Value,PRC DELEGATED CO-COMMISSIONING,BARNSLEY GP PRACTICE,12988392,"88,779.62",
Department of Health,NHS Barnsley CCG,30/06/2016,C&M-PMS Baseline Adjustment,PRC DELEGATED CO-COMMISSIONING,BARNSLEY GP PRACTICE,12988392,"3,001.58",
Department of Health,NHS Barnsley CCG,30/06/2016,External Data Contracts,COMMISSIONING SCHEMES,KIER BUSINESS SERVICES LTD,13027665,"73,794.00",GB900540375
Department of Health,NHS Barnsley CCG,30/06/2016,External Data Contracts,CORPORATE COSTS & SERVICES,KIER BUSINESS SERVICES LTD,13027665,"11,953.00",GB900540375
Department of Health,NHS Barnsley CCG,30/06/2016,External Data Contracts,CORPORATE COSTS & SERVICES,KIER BUSINESS SERVICES LTD,13192521,"11,953.00",GB900540375
Department of Health,NHS Barnsley CCG,30/06/2016,External Data Contracts,COMMISSIONING SCHEMES,KIER BUSINESS SERVICES LTD,13192521,"73,794.00",GB900540375
Department of Health,NHS Barnsley CCG,30/06/2016,External Data Contracts,COMMISSIONING SCHEMES,KIER BUSINESS SERVICES LTD,13192790,"(73,794.00)",GB900540375
Department of Health,NHS Barnsley CCG,30/06/2016,External Data Contracts,CORPORATE COSTS & SERVICES,KIER BUSINESS SERVICES LTD,13192790,"(11,953.00)",GB900540375
Department of Health,NHS Barnsley CCG,30/06/2016,External Data Contracts,COMMISSIONING SCHEMES,KIER BUSINESS SERVICES LTD,13192826,"73,794.00",GB900540375
Department of Health,NHS Barnsley CCG,30/06/2016,External Data Contracts,CORPORATE COSTS & SERVICES,KIER BUSINESS SERVICES LTD,13192826,"11,953.00",GB900540375
Department of Health,NHS Barnsley CCG,30/06/2016,C&M-PMS Contract Value,PRC DELEGATED CO-COMMISSIONING,BARNSLEY GP PRACTICE,12991546,"(22,994.75)",
Department of Health,NHS Barnsley CCG,30/06/2016,C&M-PMS Out of Hours Opt Outs,PRC DELEGATED CO-COMMISSIONING,BARNSLEY GP PRACTICE,12991546,(26.98),
Department of Health,NHS Barnsley CCG,30/06/2016,ME-PMS GP Pension EEs-PMS,PRC DELEGATED CO-COMMISSIONING,BARNSLEY GP PRACTICE,12991546,"(1,052.03)",
Department of Health,NHS Barnsley CCG,30/06/2016,ME-PMS GP Pension ERs Adjs - PMS,PRC DELEGATED CO-COMMISSIONING,BARNSLEY GP PRACTICE,12991546,"(1,395.75)",
Department of Health,NHS Barnsley CCG,30/06/2016,C&M-PMS QOF Aspiration,PRC DELEGATED CO-COMMISSIONING,BARNSLEY GP PRACTICE,13009040,"1,890.25",
Department of Health,NHS Barnsley CCG,30/06/2016,C&M-PMS QOF Achievement,PRC DELEGATED CO-COMMISSIONING,BARNSLEY GP PRACTICE,13009040,"8,209.51",
Department of Health,NHS Barnsley CCG,30/06/2016,C&M-PMS Prem Notional Rent,PRC DELEGATED CO-COMMISSIONING,BARNSLEY GP PRACTICE,13009040,"4,145.83",
Department of Health,NHS Barnsley CCG,30/06/2016,C&M-PMS PCO Seniority,PRC DELEGATED CO-COMMISSIONING,BARNSLEY GP PRACTICE,13009040,"2,200.83",
Department of Health,NHS Barnsley CCG,30/06/2016,C&M-PMS Out of Hours Opt Outs,PRC DELEGATED CO-COMMISSIONING,BARNSLEY GP PRACTICE,13009040,"(1,151.58)",
Department of Health,NHS Barnsley CCG,30/06/2016,C&M-PMS DES UNPLANNED ADMISSIONS,PRC DELEGATED CO-COMMISSIONING,BARNSLEY GP PRACTICE,13009040,"2,688.84",
Department of Health,NHS Barnsley CCG,30/06/2016,C&M-PMS Contract Value,PRC DELEGATED CO-COMMISSIONING,BARNSLEY GP PRACTICE,13009040,"46,958.82",
Department of Health,NHS Barnsley CCG,30/06/2016,C&M-PMS Baseline Adjustment,PRC DELEGATED CO-COMMISSIONING,BARNSLEY GP PRACTICE,13009040,"1,386.00",
Department of Health,NHS Barnsley CCG,30/06/2016,C&M-APMS Prem Rates,PRC DELEGATED CO-COMMISSIONING,BARNSLEY GP PRACTICE,13009040,"2,286.90",
Department of Health,NHS Barnsley CCG,30/06/2016,C&M-PMS Cost of Drugs -Dispensing,LOCAL ENHANCED SERVICES,BARNSLEY GP PRACTICE,13256120,"30,726.58",
Department of Health,NHS Barnsley CCG,30/06/2016,C&M-PMS Prsc Chrgs Cll&Rmttd by GPs,LOCAL ENHANCED SERVICES,BARNSLEY GP PRACTICE,13256120,"1,587.60",
Department of Health,NHS Barnsley CCG,30/06/2016,C&M-PMS Prof fees Dispensing,PRC DELEGATED CO-COMMISSIONING,BARNSLEY GP PRACTICE,13256120,"4,818.00",
Department of Health,NHS Barnsley CCG,30/06/2016,C&M-APMS Contract Value,PRC DELEGATED CO-COMMISSIONING,BARNSLEY GP PRACTICE,12988395,(27.60),
Department of Health,NHS Barnsley CCG,30/06/2016,C&M-APMS OOH Opt Outs,PRC DELEGATED CO-COMMISSIONING,BARNSLEY GP PRACTICE,12988395,(12.15),
Department of Health,NHS Barnsley CCG,30/06/2016,C&M-APMS Prem Actual Rent,PRC DELEGATED CO-COMMISSIONING,BARNSLEY GP PRACTICE,12988395,"(10,175.27)",
Department of Health,NHS Barnsley CCG,30/06/2016,C&M-PMS Contract Value,PRC DELEGATED CO-COMMISSIONING,BARNSLEY GP PRACTICE,12988395,"(15,436.58)",
Department of Health,NHS Barnsley CCG,30/06/2016,C&M-PMS QOF Aspiration,PRC DELEGATED CO-COMMISSIONING,BARNSLEY GP PRACTICE,13009045,"1,422.76",
Department of Health,NHS Barnsley CCG,30/06/2016,C&M-PMS QOF Achievement,PRC DELEGATED CO-COMMISSIONING,BARNSLEY GP PRACTICE,13009045,"18,167.33",
Department of Health,NHS Barnsley CCG,30/06/2016,C&M-PMS DES Case FindingPats Dem,PRC DELEGATED CO-COMMISSIONING,BARNSLEY GP PRACTICE,13009045,83.87,
Department of Health,NHS Barnsley CCG,30/06/2016,C&M-PMS Contract Value,PRC DELEGATED CO-COMMISSIONING,BARNSLEY GP PRACTICE,13009045,"15,436.58",
Department of Health,NHS Barnsley CCG,30/06/2016,C&M-APMS Prem Other,PRC DELEGATED CO-COMMISSIONING,BARNSLEY GP PRACTICE,13009045,"4,744.50",
Department of Health,NHS Barnsley CCG,30/06/2016,C&M-APMS OOH Opt Outs,PRC DELEGATED CO-COMMISSIONING,BARNSLEY GP PRACTICE,13009045,(828.26),
Department of Health,NHS Barnsley CCG,30/06/2016,C&M-APMS Contract Value,PRC DELEGATED CO-COMMISSIONING,BARNSLEY GP PRACTICE,13009045,"17,005.38",
Department of Health,NHS Barnsley CCG,30/06/2016,Hcare Srv Rec NHS Trust-Contract Baseline,ACUTE COMMISSIONING,LEEDS TEACHING HOSPITALS NHS TRUST,13062805,"67,731.78",
Department of Health,NHS Barnsley CCG,31/05/2016,Hcare Srv Rec NHS Trust-CQUIN,ACUTE COMMISSIONING,LEEDS TEACHING HOSPITALS NHS TRUST,12610628,"5,746.35",
Department of Health,NHS Barnsley CCG,31/05/2016,Hcare Srv Rec NHS Trust-Contract Baseline,ACUTE COMMISSIONING,LEEDS TEACHING HOSPITALS NHS TRUST,12610628,"69,626.95",
Department of Health,NHS Barnsley CCG,30/06/2016,Hcare Srv Rec NHS Trust-Contract Baseline,ACUTE COMMISSIONING,MID YORKSHIRE HOSPITALS NHS TRUST,12812163,"207,428.00",654967780
Department of Health,NHS Barnsley CCG,31/05/2016,Other Gen Supplies & Srv,PATIENT TRANSPORT,NHS SHEFFIELD CCG,12259146,"101,840.00",
Department of Health,NHS Barnsley CCG,30/06/2016,Clinical&Medical-Commercial Sector,ACUTE COMMISSIONING,ONEHEALTH GROUP,12811705,"44,420.30",
Department of Health,NHS Barnsley CCG,30/06/2016,Clinical&Medical-Commercial Sector,ACUTE COMMISSIONING,ONEHEALTH GROUP,12812230,"35,810.00",
Department of Health,NHS Barnsley CCG,30/06/2016,Clinical&Medical-Commercial Sector,ACUTE COMMISSIONING,ONEHEALTH GROUP,13211259,"(107,967.89)",
Department of Health,NHS Barnsley CCG,30/06/2016,Clinical&Medical-Commercial Sector,ACUTE COMMISSIONING,ONEHEALTH GROUP,13225908,"55,903.74",
Department of Health,NHS Barnsley CCG,30/06/2016,Clinical&Medical-Commercial Sector,ACUTE COMMISSIONING,ONEHEALTH GROUP,13226091,"107,967.89",
Department of Health,NHS Barnsley CCG,30/06/2016,Clinical&Medical-Commercial Sector,ACUTE COMMISSIONING,ONEHEALTH GROUP,13226157,"102,782.68",
Department of Health,NHS Barnsley CCG,30/06/2016,Clinical&Medical-Commercial Sector,ACUTE COMMISSIONING,PAIN MANAGEMENT SOLUTIONS LTD,13226011,"29,134.67",
Department of Health,NHS Barnsley CCG,30/06/2016,Clinical&Medical-Clinical Other,COMMISSIONING SCHEMES,BARNSLEY GP PRACTICE,13192686,"48,597.22",
Department of Health,NHS Barnsley CCG,30/06/2016,Clinical&Medical-Clinical Other,COMMISSIONING SCHEMES,BARNSLEY GP PRACTICE,12872201,"54,216.93",879114691
Department of Health,NHS Barnsley CCG,30/06/2016,Hcare Srv Rec Fdtn Trust-CQUIN,COMMUNITY SERVICES,ROTHERHAM NHS FOUNDATION TRUST,12872076,503.79,
Department of Health,NHS Barnsley CCG,30/06/2016,Hcare Srv Rec Fdtn Trust-Contract Baseline,COMMUNITY SERVICES,ROTHERHAM NHS FOUNDATION TRUST,12872076,"40,303.50",
Department of Health,NHS Barnsley CCG,31/05/2016,Hcare Srv Rec Fdtn Trust-CQUIN,ACUTE COMMISSIONING,ROTHERHAM NHS FOUNDATION TRUST,12610644,"11,267.42",
Department of Health,NHS Barnsley CCG,31/05/2016,Hcare Srv Rec Fdtn Trust-Contract Baseline,ACUTE COMMISSIONING,ROTHERHAM NHS FOUNDATION TRUST,12610644,"1,057,394.58",
Department of Health,NHS Barnsley CCG,30/06/2016,C&M-PMS Contract Value,PRC DELEGATED CO-COMMISSIONING,BARNSLEY GP PRACTICE,12991640,"(32,412.67)",
Department of Health,NHS Barnsley CCG,30/06/2016,C&M-PMS GP Statutory Levy,PRC DELEGATED CO-COMMISSIONING,BARNSLEY GP PRACTICE,12991640,(147.07),
Department of Health,NHS Barnsley CCG,30/06/2016,C&M-PMS Out of Hours Opt Outs,PRC DELEGATED CO-COMMISSIONING,BARNSLEY GP PRACTICE,12991640,(68.42),
Department of Health,NHS Barnsley CCG,30/06/2016,C&M-PMS Voluntary Levy,PRC DELEGATED CO-COMMISSIONING,BARNSLEY GP PRACTICE,12991640,(25.74),
Department of Health,NHS Barnsley CCG,30/06/2016,ME-PMS GP Pension EEs-PMS,PRC DELEGATED CO-COMMISSIONING,BARNSLEY GP PRACTICE,12991640,"(1,426.25)",
Department of Health,NHS Barnsley CCG,30/06/2016,ME-PMS GP Pension ERs Adjs - PMS,PRC DELEGATED CO-COMMISSIONING,BARNSLEY GP PRACTICE,12991640,"(1,561.08)",
Department of Health,NHS Barnsley CCG,30/06/2016,C&M-PMS QOF Aspiration,PRC DELEGATED CO-COMMISSIONING,BARNSLEY GP PRACTICE,12991641,"2,458.56",
Department of Health,NHS Barnsley CCG,30/06/2016,C&M-PMS QOF Achievement,PRC DELEGATED CO-COMMISSIONING,BARNSLEY GP PRACTICE,12991641,"3,428.88",
Department of Health,NHS Barnsley CCG,30/06/2016,C&M-PMS Prem Notional Rent,PRC DELEGATED CO-COMMISSIONING,BARNSLEY GP PRACTICE,12991641,"3,041.67",
Department of Health,NHS Barnsley CCG,30/06/2016,C&M-PMS PCO Seniority,PRC DELEGATED CO-COMMISSIONING,BARNSLEY GP PRACTICE,12991641,"3,038.29",
Department of Health,NHS Barnsley CCG,30/06/2016,C&M-PMS Out of Hours Opt Outs,PRC DELEGATED CO-COMMISSIONING,BARNSLEY GP PRACTICE,12991641,"(1,701.08)",
Department of Health,NHS Barnsley CCG,30/06/2016,C&M-PMS DES Case FindingPats Dem,PRC DELEGATED CO-COMMISSIONING,BARNSLEY GP PRACTICE,12991641,83.87,
Department of Health,NHS Barnsley CCG,30/06/2016,C&M-PMS Contract Value,PRC DELEGATED CO-COMMISSIONING,BARNSLEY GP PRACTICE,12991641,"68,449.42",
Department of Health,NHS Barnsley CCG,30/06/2016,C&M-PMS Baseline Adjustment,PRC DELEGATED CO-COMMISSIONING,BARNSLEY GP PRACTICE,12991641,407.50,
Department of Health,NHS Barnsley CCG,30/06/2016,Hcare Srv Rec Fdtn Trust-CQUIN,ACUTE COMMISSIONING,SHEFFIELD CHILDRENS NHS FOUNDATION TRUST,13027720,"2,046.00",
Department of Health,NHS Barnsley CCG,30/06/2016,Hcare Srv Rec Fdtn Trust-Contract Baseline,ACUTE COMMISSIONING,SHEFFIELD CHILDRENS NHS FOUNDATION TRUST,13027720,"174,355.00",
Department of Health,NHS Barnsley CCG,31/05/2016,Hcare Srv Rec Fdtn Trust-CQUIN,ACUTE COMMISSIONING,SHEFFIELD CHILDRENS NHS FOUNDATION TRUST,12610678,"2,045.48",
Department of Health,NHS Barnsley CCG,31/05/2016,Hcare Srv Rec Fdtn Trust-Contract Baseline,ACUTE COMMISSIONING,SHEFFIELD CHILDRENS NHS FOUNDATION TRUST,12610678,"174,355.39",
Department of Health,NHS Barnsley CCG,31/05/2016,Hcare Srv Rec Fdtn Trust-Contract Baseline,ACUTE COMMISSIONING,SHEFFIELD CHILDRENS NHS FOUNDATION TRUST,12610682,"37,472.50",
Department of Health,NHS Barnsley CCG,31/05/2016,Hcare Srv Rec Fdtn Trust-CQUIN,ACUTE COMMISSIONING,SHEFFIELD CHILDRENS NHS FOUNDATION TRUST,12610682,151.24,
Department of Health,NHS Barnsley CCG,30/06/2016,Hcare Srv Rec Fdtn Trust-Contract Baseline,ACUTE COMMISSIONING,SHEFFIELD TEACHING HOSPITALS NHS FOUNDATION TRUST,13196740,"2,121,000.00",654400165
Department of Health,NHS Barnsley CCG,30/06/2016,Hcare Srv Rec Fdtn Trust-Contract Baseline,ACUTE COMMISSIONING,SHEFFIELD TEACHING HOSPITALS NHS FOUNDATION TRUST,13196741,"179,000.00",654400165
Department of Health,NHS Barnsley CCG,30/06/2016,Hcare Srv Rec Fdtn Trust-CQUIN,COMMUNITY SERVICES,SOUTH WEST YORKSHIRE PARTNERSHIP NHS FOUNDATION TRUST,12811862,"222,853.00",
Department of Health,NHS Barnsley CCG,30/06/2016,Hcare Srv Rec Fdtn Trust-CQUIN,COMMUNITY SERVICES,SOUTH WEST YORKSHIRE PARTNERSHIP NHS FOUNDATION TRUST,12811972,"130,633.00",
Department of Health,NHS Barnsley CCG,30/06/2016,Hcare Srv Rec Fdtn Trust-CQUIN,LEARNING DIFFICULTIES,SOUTH WEST YORKSHIRE PARTNERSHIP NHS FOUNDATION TRUST,12811972,"7,262.00",
Department of Health,NHS Barnsley CCG,30/06/2016,Hcare Srv Rec Fdtn Trust-CQUIN,MENTAL HEALTH SERVICES - ADULTS,SOUTH WEST YORKSHIRE PARTNERSHIP NHS FOUNDATION TRUST,12811972,"94,288.00",
Department of Health,NHS Barnsley CCG,30/06/2016,Hcare Srv Rec Fdtn Trust-CQUIN,MENTAL HEALTH SERVICES - OLDER PEOPLE,SOUTH WEST YORKSHIRE PARTNERSHIP NHS FOUNDATION TRUST,12811972,"9,774.00",
Department of Health,NHS Barnsley CCG,30/06/2016,Hcare Srv Rec Fdtn Trust-Contract Baseline,MENTAL HEALTH SERVICES - OLDER PEOPLE,SOUTH WEST YORKSHIRE PARTNERSHIP NHS FOUNDATION TRUST,12812312,"345,763.00",
Department of Health,NHS Barnsley CCG,30/06/2016,Hcare Srv Rec Fdtn Trust-CQUIN,MENTAL HEALTH SERVICES - OLDER PEOPLE,SOUTH WEST YORKSHIRE PARTNERSHIP NHS FOUNDATION TRUST,12812312,"4,322.00",
Department of Health,NHS Barnsley CCG,30/06/2016,Hcare Srv Rec Fdtn Trust-Contract Baseline,MENTAL HEALTH SERVICES - ADULTS,SOUTH WEST YORKSHIRE PARTNERSHIP NHS FOUNDATION TRUST,12812312,"2,007,084.00",
Department of Health,NHS Barnsley CCG,30/06/2016,Hcare Srv Rec Fdtn Trust-CQUIN,MENTAL HEALTH SERVICES - ADULTS,SOUTH WEST YORKSHIRE PARTNERSHIP NHS FOUNDATION TRUST,12812312,"24,553.00",
Department of Health,NHS Barnsley CCG,30/06/2016,Hcare Srv Rec Fdtn Trust-Contract Baseline,LEARNING DIFFICULTIES,SOUTH WEST YORKSHIRE PARTNERSHIP NHS FOUNDATION TRUST,12812312,"160,876.00",
Department of Health,NHS Barnsley CCG,30/06/2016,Hcare Srv Rec Fdtn Trust-CQUIN,LEARNING DIFFICULTIES,SOUTH WEST YORKSHIRE PARTNERSHIP NHS FOUNDATION TRUST,12812312,"2,010.00",
Department of Health,NHS Barnsley CCG,30/06/2016,Hcare Srv Rec Fdtn Trust-Contract Baseline,COMMUNITY SERVICES,SOUTH WEST YORKSHIRE PARTNERSHIP NHS FOUNDATION TRUST,12812312,"2,901,982.00",
Department of Health,NHS Barnsley CCG,30/06/2016,Hcare Srv Rec Fdtn Trust-CQUIN,COMMUNITY SERVICES,SOUTH WEST YORKSHIRE PARTNERSHIP NHS FOUNDATION TRUST,12812312,"36,125.00",
Department of Health,NHS Barnsley CCG,30/06/2016,Clinical&Medical-Commercial Sector,PATIENT TRANSPORT,SRCL LTD,13062659,"28,705.60",702461079
Department of Health,NHS Barnsley CCG,30/06/2016,C&M-PMS Contract Value,PRC DELEGATED CO-COMMISSIONING,BARNSLEY GP PRACTICE,12988393,"(60,734.00)",
Department of Health,NHS Barnsley CCG,30/06/2016,C&M-PMS GP Statutory Levy,PRC DELEGATED CO-COMMISSIONING,BARNSLEY GP PRACTICE,12988393,(290.03),
Department of Health,NHS Barnsley CCG,30/06/2016,C&M-PMS Out of Hours Opt Outs,PRC DELEGATED CO-COMMISSIONING,BARNSLEY GP PRACTICE,12988393,(58.01),
Department of Health,NHS Barnsley CCG,30/06/2016,C&M-PMS Voluntary Levy,PRC DELEGATED CO-COMMISSIONING,BARNSLEY GP PRACTICE,12988393,(50.76),
Department of Health,NHS Barnsley CCG,30/06/2016,ME-PMS GP Pension EEs-PMS,PRC DELEGATED CO-COMMISSIONING,BARNSLEY GP PRACTICE,12988393,"(1,615.80)",
Department of Health,NHS Barnsley CCG,30/06/2016,ME-PMS GP Pension ERs Adjs - PMS,PRC DELEGATED CO-COMMISSIONING,BARNSLEY GP PRACTICE,12988393,"(1,967.45)",
Department of Health,NHS Barnsley CCG,30/06/2016,C&M-PMS QOF Aspiration,PRC DELEGATED CO-COMMISSIONING,BARNSLEY GP PRACTICE,12988394,"6,208.13",
Department of Health,NHS Barnsley CCG,30/06/2016,C&M-PMS QOF Achievement,PRC DELEGATED CO-COMMISSIONING,BARNSLEY GP PRACTICE,12988394,"32,902.24",
Department of Health,NHS Barnsley CCG,30/06/2016,C&M-PMS Prem Healthcentre Rent,PRC DELEGATED CO-COMMISSIONING,BARNSLEY GP PRACTICE,12988394,"15,940.23",
Department of Health,NHS Barnsley CCG,30/06/2016,C&M-PMS Prem Actual Rent,PRC DELEGATED CO-COMMISSIONING,BARNSLEY GP PRACTICE,12988394,336.75,
Department of Health,NHS Barnsley CCG,30/06/2016,C&M-PMS PCO Seniority,PRC DELEGATED CO-COMMISSIONING,BARNSLEY GP PRACTICE,12988394,"2,752.53",
Department of Health,NHS Barnsley CCG,30/06/2016,C&M-PMS Out of Hours Opt Outs,PRC DELEGATED CO-COMMISSIONING,BARNSLEY GP PRACTICE,12988394,"(3,396.92)",
Department of Health,NHS Barnsley CCG,30/06/2016,C&M-PMS DES Case FindingPats Dem,PRC DELEGATED CO-COMMISSIONING,BARNSLEY GP PRACTICE,12988394,41.94,
Department of Health,NHS Barnsley CCG,30/06/2016,C&M-PMS Contract Value,PRC DELEGATED CO-COMMISSIONING,BARNSLEY GP PRACTICE,12988394,"127,996.10",
Department of Health,NHS Barnsley CCG,30/06/2016,Clinical&Medical-Clinical Other,COMMISSIONING SCHEMES,BARNSLEY GP PRACTICE,13226165,"25,719.73",
Department of Health,NHS Barnsley CCG,30/06/2016,Clinical&Medical-Clinical Other,COMMISSIONING SCHEMES,BARNSLEY GP PRACTICE,13226206,"30,939.40",
Department of Health,NHS Barnsley CCG,30/06/2016,ME-PMS GP Pension ERs Adjs - PMS,PRC DELEGATED CO-COMMISSIONING,BARNSLEY GP PRACTICE,12991013,(595.83),
Department of Health,NHS Barnsley CCG,30/06/2016,ME-PMS GP Pension EEs-PMS,PRC DELEGATED CO-COMMISSIONING,BARNSLEY GP PRACTICE,12991013,(520.83),
Department of Health,NHS Barnsley CCG,30/06/2016,C&M-PMS Voluntary Levy,PRC DELEGATED CO-COMMISSIONING,BARNSLEY GP PRACTICE,12991013,(27.34),
Department of Health,NHS Barnsley CCG,30/06/2016,C&M-PMS Out of Hours Opt Outs,PRC DELEGATED CO-COMMISSIONING,BARNSLEY GP PRACTICE,12991013,(27.15),
Department of Health,NHS Barnsley CCG,30/06/2016,C&M-PMS GP Statutory Levy,PRC DELEGATED CO-COMMISSIONING,BARNSLEY GP PRACTICE,12991013,(156.23),
Department of Health,NHS Barnsley CCG,30/06/2016,C&M-PMS Contract Value,PRC DELEGATED CO-COMMISSIONING,BARNSLEY GP PRACTICE,12991013,"(33,067.57)",
Department of Health,NHS Barnsley CCG,30/06/2016,C&M-PMS QOF Aspiration,PRC DELEGATED CO-COMMISSIONING,BARNSLEY GP PRACTICE,13009037,"4,059.35",
Department of Health,NHS Barnsley CCG,30/06/2016,C&M-PMS QOF Achievement,PRC DELEGATED CO-COMMISSIONING,BARNSLEY GP PRACTICE,13009037,"20,251.37",
Department of Health,NHS Barnsley CCG,30/06/2016,C&M-PMS Prem Healthcentre Rent,PRC DELEGATED CO-COMMISSIONING,BARNSLEY GP PRACTICE,13009037,"1,155.50",
Department of Health,NHS Barnsley CCG,30/06/2016,C&M-PMS PCO Seniority,PRC DELEGATED CO-COMMISSIONING,BARNSLEY GP PRACTICE,13009037,974.50,
Department of Health,NHS Barnsley CCG,30/06/2016,C&M-PMS Out of Hours Opt Outs,PRC DELEGATED CO-COMMISSIONING,BARNSLEY GP PRACTICE,13009037,"(1,850.68)",
Department of Health,NHS Barnsley CCG,30/06/2016,C&M-PMS DES Learn Dsblty Hlth Chk,PRC DELEGATED CO-COMMISSIONING,BARNSLEY GP PRACTICE,13009037,928.00,
Department of Health,NHS Barnsley CCG,30/06/2016,C&M-PMS DES Case FindingPats Dem,PRC DELEGATED CO-COMMISSIONING,BARNSLEY GP PRACTICE,13009037,838.72,
Department of Health,NHS Barnsley CCG,30/06/2016,C&M-PMS Contract Value,PRC DELEGATED CO-COMMISSIONING,BARNSLEY GP PRACTICE,13009037,"69,352.03",
Department of Health,NHS Barnsley CCG,30/06/2016,C&M-APMS Prem Rates,PRC DELEGATED CO-COMMISSIONING,BARNSLEY GP PRACTICE,13009037,"9,194.50",
Department of Health,NHS Barnsley CCG,30/06/2016,Hcare Srv Rec NHS Trust-Contract Baseline,NHS 111,YORKSHIRE AMBULANCE SERVICE NHS TRUST,13062746,"42,079.00",
Department of Health,NHS Barnsley CCG,30/06/2016,Hcare Srv Rec NHS Trust-Contract Baseline,AMBULANCE SERVICES,YORKSHIRE AMBULANCE SERVICE NHS TRUST,13062756,"582,050.00",
Department of Health,NHS Barnsley CCG,30/06/2016,Hcare Srv Rec NHS Trust-Contract Baseline,PATIENT TRANSPORT,YORKSHIRE AMBULANCE SERVICE NHS TRUST,13062998,"107,150.92",
,,,,,,,"27,008,388.61",
